[Event "Charlotte CC Fall GM-ALTO 2024"]
[Site "Charlotte"]
[Date "2024.11.24"]
[Round "4.1"]
[White "Stremavicius, Titas"]
[Black "Fernandez, Daniel Howard"]
[Result "1-0"]
[ECO "A19"]
[WhiteElo "2545"]
[BlackElo "2503"]
[Annotator "TA"]
[PlyCount "61"]
[EventDate "2024.11.22"]
[EventType "tourn"]
[EventCountry "USA"]
[SourceTitle "playchess.com"]
[Source "ChessBase"]
[SourceQuality "1"]
[TimeControl "5400+30"]

{[%evp 11,61,10,15,7,0,17,18,12,13,27,108,95,254,260,512,174,175,189,189,189,198,203,185,137,254,202,204,188,176,97,96,106,150,145,170,172,170,159,169,133,128,133,154,161,163,163,191,200,188,198,377,367]} 1. c4 {[%emt 0:01:01]} Nf6 {[%emt 0:12:24]} 2. Nc3 {[%emt 0:00:14]} e6 {[%emt 0:00:10]} 3. e4 {[%emt 0:01:24][%cal Be2e4,Be4e5][%mdl 32]} c5 {[%emt 0:00:03]} 4. e5 {[%emt 0:01:47]} Ng8 {[%emt 0:00:10]} 5. d4 {[%emt 0:00:09]} cxd4 {[%emt 0:00:12]} 6. Qxd4 {[%emt 0:00:04]} Nc6 {[%emt 0:00:05]} 7. Qf4 {[%emt 0:00:12]} d6 {[%emt 0:00:03]} 8. Nf3 {[%emt 0:00:09]} Nh6 {[%emt 0:00:04]} 9. Be2 {[%emt 0:07:15][%cal Bf1e2,Be2d1,Bd1a4][%mdl 32] 0-0 would now be deadly. The position is equal.} dxe5 {[%emt 0:12:50]} 10. Nxe5 {[%emt 0:00:12]} Nd4 {[%emt 0:00:25]} (10... Nf5 $11) 11. Bd1 $16 {[%emt 0:03:31]} f6 $2 {[%emt 0:04:54]} (11... Nc6 $16 {might work better.}) 12. Ba4+ $18 {[%emt 0:05:45]} Ke7 $2 {[%emt 1:05:10]} (12... b5) 13. Nf3 $2 {[%emt 1:15:17]} (13. Be3 g5 14. Qe4 (14. Qxd4 Qxd4 15. Bxd4 fxe5 $18)) 13... Nhf5 {[%emt 0:00:30]} 14. Nxd4 {[%emt 0:00:00]} Nxd4 {[%emt 0:00:30]} 15. Be3 e5 {[%emt 0:00:00]} 16. Qe4 {[%emt 0:00:00]} Kf7 {[%emt 0:00:00]} 17. f4 {[%emt 0:00:00]} ({White should play} 17. O-O-O $18) 17... Nf5 {[%emt 0:00:00]} (17... f5 $16 18. Qxe5 Nc6) 18. fxe5 {[%emt 0:00:00]} Nxe3 {[%emt 0:00:00]} 19. Qxe3 {[%emt 0:00:00] [#] Hoping for c5.} Qb6 {[%emt 0:00:00]} 20. Qf3 {[%emt 0:00:00]} (20. Qd2 $18) 20... Qd4 $16 {[%emt 0:00:00]} 21. exf6 {[%emt 0:00:00]} Bb4 {[%emt 0:00:00]} 22. Rf1 {[%emt 0:00:00][%cal Bh1f1,Bf1d1,Bd1d6][%mdl 32] White wants to mate with fxg7+.} gxf6 {[%emt 0:00:00][%cal Oc8g4]} 23. Rd1 $36 {[%emt 0:00:00][%mdl 2048] White is in control.} Qe5+ {[%emt 0:00:00]} 24. Kd2 {[%emt 0:05:30][%cal Be1d2,Bd2c2,Bc2b3,Bb3c3][%mdl 32] [#] aiming for Kc2.} Rd8+ 25. Kc2 {[%emt 0:00:00]} Rxd1 {[%emt 0:00:00]} 26. Rxd1 {[%emt 0:00:00]} Qf5+ {[%emt 0:00:00]} 27. Kb3 {[%emt 0:00:00] White is more active.} Qxf3 {[%emt 0:00:00]} 28. gxf3 {[%emt 0:00:00]} Bxc3 {[%emt 0:00:00]} 29. Kxc3 {[%emt 0:02:30] And now Rd8 would win.} Be6 30. Bd7 Rg8 $2 (30... Ke7 {was worth a try.}) 31. Rd6 {[%emt 0:00:00] Weighted Error Value: White=0.37/Black=0.37.  Mistake:       	White=3     	Black=5      Inaccurate:     	---       	Black=1      OK:         	White=7     	Black=11     Best:        	White=4     	Black=1} 1-0

[Event "Charlotte CC Fall GM-ALTO 2024"]
[Site "Charlotte"]
[Date "2024.11.24"]
[Round "4.2"]
[White "Ouellet, Maili-Jade"]
[Black "Stefanov, Emil"]
[Result "1/2-1/2"]
[ECO "D32"]
[WhiteElo "2352"]
[BlackElo "2362"]
[Annotator "RC"]
[PlyCount "108"]
[EventDate "2024.11.22"]
[EventType "tourn"]
[EventCountry "USA"]
[SourceTitle "playchess.com"]
[Source "ChessBase"]
[SourceQuality "1"]
[TimeControl "5400+30"]

1. d4 {[%emt 1:31:00]} d5 {[%emt 0:08:12]} 2. c4 {[%emt 0:00:00]} e6 {[%emt 0:00:06]} 3. Nc3 {[%emt 0:00:00]} c5 {[%emt 0:00:04]} 4. cxd5 {[%emt 0:00:00]} exd5 {[%emt 0:00:08]} 5. Nf3 {[%emt 0:00:00]} Nc6 {[%emt 0:00:05]} 6. dxc5 {[%emt 0:00:00]} d4 {[%emt 0:00:13]} 7. Na4 {[%emt 0:00:00]} Bxc5 {[%emt 0:00:13]} 8. Nxc5 {[%emt 0:00:00]} Qa5+ {[%emt 0:00:04]} 9. Qd2 {[%emt 0:00:00]} Qxc5 {[%emt 0:00:06]} 10. a3 {[%emt 0:00:00]} Nge7 {[%emt 0:00:07]} 11. b4 {[%emt 0:00:00]} Qb6 {[%emt 0:00:06]} 12. Bb2 {[%emt 0:00:00]} O-O {[%emt 0:00:12]} 13. Bxd4 {[%emt 0:00:00]} Nxd4 {[%emt 0:00:59]} 14. Qxd4 {[%emt 0:00:00]} Nc6 {[%emt 0:07:46]} 15. Qb2 {[%emt 0:00:00]} a5 {[%emt 0:01:33]} 16. b5 {[%emt 0:00:00]} a4 {[%emt 0:03:14]} 17. e3 {[%emt 0:00:00]} Rd8 {[%emt 0:11:56]} 18. Nd2 {[%emt 0:00:00]} Na5 {[%emt 0:03:36]} 19. Nc4 {[%emt 0:00:00]} Qg6 {[%emt 0:15:48]} 20. Nxa5 {[%emt 0:00:00]} Rxa5 {[%emt 0:00:12]} 21. f3 {[%emt 0:00:00]} Be6 {[%emt 0:18:08]} 22. Kf2 {[%emt 0:00:00]} Raa8 {[%emt 0:01:05]} 23. Be2 {[%emt 0:00:00]} Bb3 {[%emt 0:01:44]} 24. Rac1 {[%emt 0:00:00]} Rd7 {[%emt 0:02:58]} 25. h4 {[%emt 0:00:00]} Re8 {[%emt 0:13:13]} 26. Rh3 {[%emt 0:00:00]} Qb6 {[%emt 0:02:31]} 27. f4 {[%emt 0:00:00]} Red8 {[%emt 0:01:23]} 28. Ke1 {[%emt 0:00:00]} Rd2 {[%emt 0:03:03]} 29. Qc3 {[%emt 0:00:00]} Qd6 {[%emt 0:02:02]} 30. Rf3 {[%emt 0:01:52]} g6 {[%emt 0:02:34]} 31. h5 {[%emt 0:03:40]} Qxa3 {[%emt 0:00:06]} 32. hxg6 {[%emt 0:00:40]} fxg6 {[%emt 0:02:18]} 33. e4 {[%emt 0:04:56]} Qe7 {[%emt 0:00:42]} 34. Qe3 {[%emt 0:03:08]} Qh4+ {[%emt 0:00:25]} 35. g3 {[%emt 0:01:29]} Qh2 {[%emt 0:00:15]} 36. Qf2 {[%emt 0:00:42]} Qh1+ {[%emt 0:00:33]} 37. Qf1 {[%emt 0:00:11]} Qh2 {[%emt 0:00:16]} 38. Qf2 {[%emt 0:00:31]} Qh1+ {[%emt 0:00:42]} 39. Qf1 {[%emt 0:00:01]} Qxf1+ {[%emt 0:00:30]} 40. Kxf1 {[%emt 0:01:14]} Rb2 {[%emt 0:00:05]} 41. g4 {[%emt 0:00:50]} Rdd2 {[%emt 0:00:31]} 42. Re3 {[%emt 0:00:14]} a3 {[%emt 0:00:40]} 43. Rxb3 {[%emt 0:00:59]} Rxe2 {[%emt 0:00:04]} 44. Rxa3 {[%emt 0:00:18]} Rf2+ {[%emt 0:00:31]} 45. Kg1 {[%emt 0:00:18]} Rg2+ {[%emt 0:01:15]} 46. Kh1 {[%emt 0:00:24]} Rh2+ {[%emt 0:00:05]} 47. Kg1 {[%emt 0:00:01]} Rbg2+ {[%emt 0:00:14]} 48. Kf1 {[%emt 0:00:01]} Rf2+ {[%emt 0:00:12]} 49. Kg1 {[%emt 0:01:07]} Rhg2+ {[%emt 0:01:28]} 50. Kh1 {[%emt 0:00:01]} Rxg4 {[%emt 0:00:18]} 51. Rc8+ {[%emt 0:00:12]} Kf7 {[%emt 0:00:10]} 52. Rc7+ {[%emt 0:00:05]} Ke6 {[%emt 0:00:15]} 53. Rxb7 {[%emt 0:01:34]} Rfxf4 {[%emt 0:00:57]} 54. Rxh7 {[%emt 0:00:39]} Rxe4 {[%emt 0:00:39]} 1/2-1/2

[Event "Charlotte CC Fall GM-ALTO 2024"]
[Site "Charlotte"]
[Date "2024.11.24"]
[Round "4.3"]
[White "Gedajlovic, Max"]
[Black "Padmini, Rout"]
[Result "1/2-1/2"]
[ECO "B40"]
[WhiteElo "2377"]
[BlackElo "2334"]
[Annotator "RC"]
[PlyCount "142"]
[EventDate "2024.11.22"]
[EventType "tourn"]
[EventCountry "USA"]
[SourceTitle "playchess.com"]
[Source "ChessBase"]
[SourceQuality "1"]
[TimeControl "5400+30"]

1. e4 {[%emt 0:00:05]} c5 {[%emt 0:02:12]} 2. Nf3 {[%emt 0:00:10]} e6 {[%emt 0:00:07]} 3. g3 {[%emt 0:00:11]} Nc6 {[%emt 0:00:14]} 4. Bg2 {[%emt 0:00:09]} Nf6 {[%emt 0:00:44]} 5. Qe2 {[%emt 0:00:14]} e5 {[%emt 0:00:46]} 6. O-O {[%emt 0:00:25]} g6 {[%emt 0:01:26]} 7. c3 {[%emt 0:03:00]} Bg7 {[%emt 0:07:24]} 8. Rd1 {[%emt 0:02:02]} d6 {[%emt 0:03:32]} 9. d4 {[%emt 0:02:26]} Qc7 {[%emt 0:01:13]} 10. Na3 {[%emt 0:04:13]} a6 {[%emt 0:14:11]} 11. Nc4 {[%emt 0:07:09]} O-O {[%emt 0:00:29]} 12. Nxd6 {[%emt 0:03:28]} exd4 {[%emt 0:06:38]} 13. Nxc8 {[%emt 0:03:51]} Raxc8 {[%emt 0:00:19]} 14. cxd4 {[%emt 0:00:14]} Rfe8 {[%emt 0:00:59]} 15. Bf4 {[%emt 0:03:13]} Qa5 {[%emt 0:02:45]} 16. d5 {[%emt 0:09:04]} Rxe4 {[%emt 0:06:36]} 17. Qd2 {[%emt 0:02:04]} Qxd2 {[%emt 0:09:35]} 18. Nxd2 {[%emt 0:00:19]} Rxf4 {[%emt 0:00:15]} 19. dxc6 {[%emt 0:02:52]} Rb4 {[%emt 0:04:07]} 20. cxb7 {[%emt 0:00:14]} Rb8 {[%emt 0:00:07]} 21. Nb3 {[%emt 0:04:06]} R4xb7 {[%emt 0:03:17]} 22. Bxb7 {[%emt 0:00:37]} Rxb7 {[%emt 0:00:03]} 23. Nxc5 {[%emt 0:09:58]} Rxb2 {[%emt 0:00:08]} 24. Rab1 {[%emt 0:00:41]} Rc2 {[%emt 0:00:44]} 25. Rb8+ {[%emt 0:04:36]} Bf8 {[%emt 0:00:43]} 26. Rdd8 {[%emt 0:00:34]} Rxc5 {[%emt 0:00:41]} 27. Rxf8+ {[%emt 0:00:05]} Kg7 {[%emt 0:34:45]} 28. Rfc8 {[%emt 0:00:08]} Ra5 {[%emt 0:00:00]} 29. Rc2 {[%emt 0:00:34]} g5 {[%emt 0:00:00]} 30. Rbc8 {[%emt 0:04:21]} g4 {[%emt 0:00:00]} 31. R8c5 {[%emt 0:00:33]} Ra3 {[%emt 0:00:00]} 32. Re2 {[%emt 0:00:30]} Kg6 {[%emt 0:00:00]} 33. Kg2 {[%emt 0:00:33]} h5 {[%emt 0:00:00]} 34. Rc6 {[%emt 0:00:49]} Kf5 {[%emt 0:00:00]} 35. Rc5+ {[%emt 0:01:26]} Kg6 {[%emt 0:00:00]} 36. h4 {[%emt 0:02:37]} gxh3+ {[%emt 0:00:00]} 37. Kxh3 {[%emt 0:00:03]} Ra4 {[%emt 0:00:00]} 38. Rec2 {[%emt 0:02:28]} Ne4 {[%emt 0:05:30]} 39. Rd5 {[%emt 0:01:23]} f6 {[%emt 0:00:00]} 40. Kg2 {[%emt 0:00:54]} Ra3 {[%emt 0:00:00]} 41. Rd4 {[%emt 0:01:24]} Ng5 {[%emt 0:00:00]} 42. Rf4 {[%emt 0:03:00]} Ne6 {[%emt 0:00:00]} 43. Re4 {[%emt 0:00:14]} Ng5 {[%emt 0:00:00]} 44. Re3 {[%emt 0:00:14]} Ra4 {[%emt 0:00:00]} 45. Rec3 {[%emt 0:02:57]} Nf7 {[%emt 0:00:00]} 46. Rc4 {[%emt 0:00:39]} Ra3 {[%emt 0:00:00]} 47. Rf4 {[%emt 0:01:02]} Ne5 {[%emt 0:00:00]} 48. Rd2 {[%emt 0:00:32]} Nd3 {[%emt 0:00:00]} 49. Re4 {[%emt 0:01:10]} Ne5 {[%emt 0:00:00]} 50. Rd6 {[%emt 0:01:48]} Ng4 {[%emt 0:00:00]} 51. Re2 {[%emt 0:00:23]} Kf5 {[%emt 0:00:00]} 52. Rd5+ {[%emt 0:00:55]} Kg6 {[%emt 0:00:00]} 53. Kf1 {[%emt 0:01:04]} Ne5 {[%emt 0:00:00]} 54. Rd8 {[%emt 0:03:32]} Ra4 {[%emt 0:00:00]} 55. Red2 {[%emt 0:03:34]} Kf5 {[%emt 0:00:00]} 56. R8d4 {[%emt 0:00:34]} Ra3 {[%emt 0:00:00]} 57. Ke2 {[%emt 0:02:24]} Kg6 {[%emt 0:00:00]} 58. Kd1 {[%emt 0:00:50]} Nc6 {[%emt 0:00:00]} 59. Rf4 {[%emt 0:00:35]} Ne5 {[%emt 0:00:00]} 60. Rd6 {[%emt 0:02:16]} Ng4 {[%emt 0:00:00]} 61. f3 {[%emt 0:01:49]} Ne3+ {[%emt 0:11:30]} 62. Kc1 {[%emt 0:00:37]} Nf5 {[%emt 0:00:00]} 63. Kb2 {[%emt 0:06:59]} Rxa2+ {[%emt 0:00:00]} 64. Kxa2 {[%emt 0:00:01]} Nxd6 {[%emt 0:00:00]} 65. Ra4 {[%emt 0:00:47]} Nf5 {[%emt 0:00:00]} 66. g4 {[%emt 0:00:16]} Nh4 {[%emt 0:00:00]} 67. gxh5+ {[%emt 0:01:05]} Kxh5 {[%emt 0:00:00]} 68. Rxa6 {[%emt 0:00:04]} f5 {[%emt 0:00:00]} 69. Ra5 {[%emt 0:00:36]} Kg5 {[%emt 0:00:00]} 70. f4+ {[%emt 0:00:13]} Kxf4 {[%emt 0:00:00]} 71. Rxf5+ {[%emt 0:00:06]} Nxf5 {[%emt 0:00:00]} 1/2-1/2

[Event "Charlotte CC Fall GM-ALTO 2024"]
[Site "Charlotte"]
[Date "2024.11.24"]
[Round "4.4"]
[White "Wang, Tianqi"]
[Black "Mitrabha, Guha"]
[Result "1-0"]
[ECO "A43"]
[WhiteElo "2323"]
[BlackElo "2511"]
[Annotator "TA"]
[PlyCount "141"]
[EventDate "2024.11.22"]
[EventType "tourn"]
[EventCountry "USA"]
[SourceTitle "playchess.com"]
[Source "ChessBase"]
[SourceQuality "1"]
[TimeControl "5400+30"]

{[%evp 52,141,52,39,43,40,70,57,59,53,52,51,49,50,60,65,55,65,57,67,58,58,61,60,54,42,133,140,131,130,134,136,158,194,199,141,139,140,277,283,295,250,242,236,309,295,354,352,515,375,472,293,292,287,346,275,321,153,246,118,106,80,350,366,341,321,385,386,387,382,387,385,681,678,697,659,576,440,29991,29992,29992,29993,29993,1172,29994,29995,29995,29996,29996,29997,29997,29998]} 1. d4 {[%emt 0:00:04]} Nf6 {[%emt 0:12:56]} 2. Nf3 {[%emt 0:00:11]} c5 {[%emt 0:00:08]} 3. d5 {[%emt 0:03:54]} b5 {[%emt 0:00:58]} 4. e4 {[%emt 0:01:08]} Nxe4 {[%emt 0:00:09]} 5. Bd3 {[%emt 0:00:06]} Nf6 {[%emt 0:00:16]} 6. Bxb5 {[%emt 0:00:38] A43: Schmid Benoni.} g6 {[%emt 0:00:41]} 7. c4 {[%emt 0:00:11]} Bg7 {[%emt 0:00:06]} 8. Nc3 {[%emt 0:00:05]} O-O {[%emt 0:00:04]} 9. O-O {[%emt 0:00:07]} Ba6 $146 {[%emt 0:05:49]} ({Predecessor:} 9... d6 10. Re1 Nbd7 11. Bc6 Rb8 12. h3 Nb6 13. Qe2 e5 14. a3 Ba6 15. Nb5 Bxb5 16. Bxb5 {½-½ Le,Q (2709)-Ponkratov,P (2624) Chess.com Rapid Wk16 Swiss 2022 (5)}) 10. Re1 {[%emt 0:00:53]} Bxb5 {[%emt 0:02:36]} 11. Nxb5 {[%emt 0:00:16]} d6 {[%emt 0:00:30]} 12. Bd2 {[%emt 0:02:02]} Nbd7 {[%emt 0:01:22]} 13. Bc3 {[%emt 0:00:52]} Nb6 {[%emt 0:00:13]} 14. b3 {[%emt 0:00:37]} Qd7 {[%emt 0:00:03]} 15. a4 {[%emt 0:00:21]} a6 {[%emt 0:00:26]} 16. Na3 {[%emt 0:00:08]} Rab8 {[%emt 0:00:09]} 17. Qc2 {[%emt 0:00:45]} Rfe8 {[%emt 0:00:42]} 18. Rad1 {[%emt 0:00:25]} Qf5 {[%emt 0:03:39]} 19. Qa2 {[%emt 0:07:36]} Nbd7 {[%emt 0:07:54]} 20. Nc2 {[%emt 0:08:30]} Rb7 {[%emt 0:01:16]} 21. Ne3 {[%emt 0:06:37]} Qf4 {[%emt 0:00:30]} 22. Nf1 {[%emt 0:03:20]} Nh5 {[%emt 0:04:14]} 23. Bxg7 {[%emt 0:04:14]} Kxg7 {[%emt 0:00:10]} 24. Re3 {[%emt 0:00:17]} Nf8 {[%emt 0:02:00]} 25. Ng3 {[%emt 0:03:52]} Nf6 {[%emt 0:09:27]} 26. Qb2 {[%emt 0:00:58]} Kg8 {[%emt 0:00:37]} 27. Qc2 {[%emt 0:02:15]} Qh6 {[%emt 0:04:36]} 28. h3 {[%emt 0:00:28]} Qg7 {[%emt 0:01:08]} 29. Qe2 {[%emt 0:01:02]} Rd7 {[%emt 0:00:51]} 30. Qe1 {[%emt 0:00:49]} Rb7 {[%emt 0:07:11]} 31. Qa5 {[%emt 0:05:59]} Ra8 {[%emt 0:02:11]} 32. Rde1 {[%emt 0:08:53]} Raa7 {[%emt 0:00:54]} 33. R1e2 {[%emt 0:00:59]} h6 {[%emt 0:01:46]} 34. Qe1 {[%emt 0:09:50]} e5 {[%emt 0:02:09]} 35. dxe6 {[%emt 0:00:13]} Nxe6 {[%emt 0:00:02]} 36. Rd2 {[%emt 0:01:13]} Rd7 {[%emt 0:00:08]} 37. Qd1 {[%emt 0:00:23]} Qf8 {[%emt 0:00:46]} 38. Red3 {[%emt 0:02:22]} Ne8 {[%emt 0:06:24]} ({Better is} 38... Qe7 $1 $14) 39. Ne4 $16 {[%emt 0:05:09]} Nf4 {[%emt 0:00:17] [#]} 40. Re3 $1 {[%emt 0:00:08]} Re7 {[%emt 0:07:30]} 41. Nxd6 {[%emt 0:07:36]} Rxe3 {[%emt 0:00:09]} 42. fxe3 {[%emt 0:00:04]} Ne6 {[%emt 0:00:59]} 43. Nxe8 {[%emt 0:00:41]} (43. Ne5 $18) 43... Qxe8 $16 {[%emt 0:00:01]} 44. Ne5 {[%emt 0:00:11]} Nf8 {[%emt 0:05:43]} (44... Kg7 $16 45. Rd7 Rxd7 46. Qxd7 Kf8 47. Qxe8+ Kxe8) 45. Ng4 $18 {[%emt 0:01:01]} Qe7 {[%emt 0:00:40]} 46. Qa1 {[%emt 0:01:09]} ({Resist} 46. Nxh6+ $6 Kh7 47. Ng4 f5 $16) 46... f5 {[%emt 0:01:17]} 47. Nf6+ {[%emt 0:00:44]} (47. Nxh6+ Kh7 48. Nxf5 gxf5 $17) 47... Kf7 {[%emt 0:00:39]} 48. Nd5 {[%emt 0:00:05]} Qh4 {[%emt 0:01:28]} 49. Rf2 {[%emt 0:01:45]} Rb7 {[%emt 0:00:32]} (49... Kg8 $142 50. Qe5 Rf7) 50. Rf4 {[%emt 0:03:53]} Qg5 {[%emt 0:03:20]} 51. Qc3 {[%emt 0:01:41]} Ne6 {[%emt 0:00:53]} 52. Rf2 {[%emt 0:00:29]} Qh4 {[%emt 0:01:18]} 53. a5 {[%emt 0:02:07]} h5 {[%emt 0:01:03]} 54. Rf3 {[%emt 0:01:32]} (54. Qe5 $18 {is more deadly.}) 54... Kg8 {[%emt 0:01:40]} (54... Qd8 $16 {keeps fighting.} 55. Rf2 h4) 55. Kh2 {[%emt 0:02:02]} (55. Qe5 $18 {and White stays clearly on top.} Ng5 56. Rg3) 55... Qd8 $16 {[%emt 0:00:17]} 56. Rg3 {[%emt 0:00:52]} Nf8 $2 {[%emt 0:00:55][%mdl 8192]} (56... Kf7 $16 {was called for.}) 57. Nf6+ $18 {[%emt 0:01:14]} Kf7 {[%emt 0:00:45]} 58. Nxh5 $1 {[%emt 0:00:36]} Ne6 {[%emt 0:00:03]} 59. Nf4 {[%emt 0:00:08]} Nxf4 {[%emt 0:00:41]} 60. exf4 {[%emt 0:00:04]} Re7 {[%emt 0:00:16]} 61. Rd3 {[%emt 0:00:58]} Qc7 $2 {[%emt 0:00:05]} (61... Qb8 62. Qd2 g5) 62. Qd2 $18 {[%emt 0:00:18]} Qb8 {[%emt 0:02:26]} 63. Rd8 {[%emt 0:01:16]} Qc7 {[%emt 0:02:00]} 64. Qd6 {[%emt 0:02:04]} Qxa5 {[%emt 0:01:25]} (64... Qxd6 $18 65. Rxd6 Re3 66. Rxa6 Rxb3) 65. Qd5+ {[%emt 0:00:12]} Kf6 {[%emt 0:00:32]} 66. Rf8+ {[%emt 0:00:22]} Kg7 {[%emt 0:00:01]} 67. Qg8+ {[%emt 0:00:07]} Kh6 {[%emt 0:00:01]} 68. Rf6 {[%emt 0:00:34]} Rg7 {[%emt 0:00:12]} 69. Qh8+ {[%emt 0:00:10]} Rh7 {[%emt 0:00:00]} 70. Qf8+ {[%emt 0:00:09]} Kh5 {[%emt 0:01:34]} 71. Rxf5+ {[%emt 0:00:38]} 1-0

[Event "Charlotte CC Fall GM-ALTO 2024"]
[Site "Charlotte"]
[Date "2024.11.24"]
[Round "4.5"]
[White "Griffith, Kyron"]
[Black "Williams, Justus"]
[Result "1/2-1/2"]
[ECO "B09"]
[WhiteElo "2407"]
[BlackElo "2355"]
[Annotator "RC"]
[PlyCount "137"]
[EventDate "2024.11.22"]
[EventType "tourn"]
[EventCountry "USA"]
[SourceTitle "playchess.com"]
[Source "ChessBase"]
[SourceQuality "1"]
[TimeControl "5400+30"]

1. e4 {[%emt 0:02:53]} d6 {[%emt 0:00:35]} 2. d4 {[%emt 0:00:06]} Nf6 {[%emt 0:00:08]} 3. Nc3 {[%emt 0:00:07]} g6 {[%emt 0:00:09]} 4. f4 {[%emt 0:00:44]} c6 {[%emt 0:04:28]} 5. Nf3 {[%emt 0:01:13]} d5 {[%emt 0:08:24]} 6. e5 {[%emt 0:01:15]} Ng8 {[%emt 0:04:51]} 7. Bd3 {[%emt 0:04:15]} Bg4 {[%emt 0:01:34]} 8. h3 {[%emt 0:04:53]} Bxf3 {[%emt 0:02:31]} 9. Qxf3 {[%emt 0:00:04]} e6 {[%emt 0:00:45]} 10. Be3 {[%emt 0:00:43]} Nd7 {[%emt 0:04:22]} 11. g4 {[%emt 0:02:03]} c5 {[%emt 0:00:45]} 12. dxc5 {[%emt 0:01:10]} Bxc5 {[%emt 0:01:10]} 13. O-O-O {[%emt 0:13:42]} Bxe3+ {[%emt 0:02:25]} 14. Qxe3 {[%emt 0:00:03]} Qb6 {[%emt 0:02:27]} 15. Qg3 {[%emt 0:02:27]} a6 {[%emt 0:01:26]} 16. f5 {[%emt 0:01:28]} Ne7 {[%emt 0:05:25]} 17. Qh4 {[%emt 0:12:24]} Qe3+ {[%emt 0:21:21]} 18. Kb1 {[%emt 0:00:05]} Qxe5 {[%emt 0:00:41]} 19. Rhe1 {[%emt 0:00:59]} Qd6 {[%emt 0:00:35]} 20. fxe6 {[%emt 0:00:59]} fxe6 {[%emt 0:00:03]} 21. Bb5 {[%emt 0:02:17]} O-O-O {[%emt 0:09:05]} 22. Ne4 {[%emt 0:02:11]} Qb6 {[%emt 0:02:12]} 23. Qxe7 {[%emt 0:00:52]} axb5 {[%emt 0:00:13]} 24. Nd6+ {[%emt 0:01:40]} Kb8 {[%emt 0:10:03]} 25. Nf7 {[%emt 0:00:30]} Rhe8 {[%emt 0:01:30]} 26. Qa3 {[%emt 0:04:34]} Rc8 {[%emt 0:00:26]} 27. Nd6 {[%emt 0:00:33]} b4 {[%emt 0:00:59]} 28. Nxc8 {[%emt 0:00:22]} bxa3 {[%emt 0:00:03]} 29. Nxb6 {[%emt 0:00:05]} Nxb6 {[%emt 0:00:09]} 30. b3 {[%emt 0:01:39]} e5 {[%emt 0:04:06]} 31. c3 {[%emt 0:03:29]} Kc7 {[%emt 0:01:29]} 32. Rf1 {[%emt 0:00:48]} Re7 {[%emt 0:04:12]} 33. Kc2 {[%emt 0:00:31]} d4 {[%emt 0:01:03]} 34. cxd4 {[%emt 0:11:59]} Nd5 {[%emt 0:00:45]} 35. Rfe1 {[%emt 0:01:51]} e4 {[%emt 0:00:30]} 36. b4 {[%emt 0:00:53]} Nxb4+ {[%emt 0:00:54]} 37. Kb3 {[%emt 0:00:10]} Nd5 {[%emt 0:00:07]} 38. Kxa3 {[%emt 0:00:59]} Kd6 {[%emt 0:01:12]} 39. Kb3 {[%emt 0:00:45]} Nf4 {[%emt 0:01:38]} 40. Re3 {[%emt 0:06:04]} Kd5 {[%emt 0:00:54]} 41. Kc2 {[%emt 0:01:24]} Ne6 {[%emt 0:02:13]} 42. Kd2 {[%emt 0:02:11]} Nxd4 {[%emt 0:01:03]} 43. Ra3 {[%emt 0:00:08]} Rf7 {[%emt 0:00:28]} 44. Ra8 {[%emt 0:00:45]} Ke5 {[%emt 0:01:18]} 45. Re8+ {[%emt 0:00:37]} Kf4 {[%emt 0:00:10]} 46. Rb1 {[%emt 0:05:56]} Nf3+ {[%emt 0:00:39]} 47. Ke2 {[%emt 0:00:12]} Rd7 {[%emt 0:00:29]} 48. Rf8+ {[%emt 0:00:29]} Kg3 {[%emt 0:00:33]} 49. Ke3 {[%emt 0:03:38]} Ng5 {[%emt 0:01:34]} 50. Rb8 {[%emt 0:00:24]} Rd3+ {[%emt 0:00:15]} 51. Ke2 {[%emt 0:00:04]} Ne6 {[%emt 0:01:00]} 52. R8xb7 {[%emt 0:01:26]} Nd4+ {[%emt 0:00:29]} 53. Kf1 {[%emt 0:01:50]} e3 {[%emt 0:00:39]} 54. R7b3 {[%emt 0:00:38]} Nxb3 {[%emt 0:00:30]} 55. Rxb3 {[%emt 0:00:05]} Rd1+ {[%emt 0:00:21]} 56. Ke2 {[%emt 0:00:03]} Rd2+ {[%emt 0:00:13]} 57. Kxe3 {[%emt 0:00:03]} Rxa2 {[%emt 0:00:15]} 58. g5 {[%emt 0:04:13]} Ra7 {[%emt 0:01:12]} 59. Ke2+ {[%emt 0:00:20]} Kh4 {[%emt 0:00:02]} 60. Kf2 {[%emt 0:00:24]} Ra2+ {[%emt 0:00:26]} 61. Kg1 {[%emt 0:00:12]} Kxg5 {[%emt 0:00:15]} 62. Rb4 {[%emt 0:00:08]} Rc2 {[%emt 0:00:16]} 63. Ra4 {[%emt 0:00:03]} Rd2 {[%emt 0:00:40]} 64. Rg4+ {[%emt 0:00:08]} Kf5 {[%emt 0:00:16]} 65. Rh4 {[%emt 0:00:19]} h5 {[%emt 0:00:13]} 66. Ra4 {[%emt 0:00:04]} g5 {[%emt 0:00:31]} 67. Rb4 {[%emt 0:00:07]} Re2 {[%emt 0:00:06]} 68. Ra4 {[%emt 0:00:21]} Re4 {[%emt 0:01:19]} 69. Ra2 {[%emt 0:00:05]} 1/2-1/2